fUST/lending_fUST_20250329
["ID","MTS","AMOUNT","RATE_DAILY","PERIOD"]
[356785514,1743178086179,-500.0,0.0003041,10]
[356785515,1743178086203,-811.05,0.0003041,10]
[356785516,1743178086228,-535.56476177,0.0003041,10]
[356785517,1743178086252,-578.82,0.0003041,10]
[356785518,1743178086276,-1555.62,0.0003041,10]
[356785519,1743178086301,-1012.79,0.0003041,10]
[356785520,1743178086325,-500.0,0.0003041,10]
[356785521,1743178086349,-15217.25,0.0003041,10]
[356785522,1743178086372,-500.0,0.0003041,10]
[356785523,1743178086395,-3872.81,0.0003041,10]
[356785524,1743178086418,-500.0,0.0003041,10]
[356785525,1743178086441,-500.0,0.0003041,10]
[356785526,1743178086634,-27974.37,0.0003041,10]
[356785527,1743178086658,-911.5,0.0003041,10]
[356785528,1743178086681,-850.77,0.0003041,10]
[356785529,1743178086705,-1603.71,0.0003041,10]
[356785530,1743178086729,-540.12,0.0003041,10]
[356785531,1743178086752,-500.0,0.0003041,10]
[356785532,1743178086774,-500.0,0.0003041,10]
[356785533,1743178086798,-500.0,0.0003041,10]
[356785534,1743178086821,-500.0,0.0003041,10]
[356785535,1743178086844,-500.0,0.0003041,10]
[356785536,1743178086867,-3283.96,0.0003041,10]
[356785537,1743178086889,-500.0,0.0003041,10]
[356785538,1743178086912,-17230.33,0.0003041,10]
[356785539,1743178086934,-1100.67,0.0003041,10]
[356785540,1743178086957,-500.0,0.0003041,10]
[356785541,1743178086978,-500.0,0.0003041,10]
[356785542,1743178087000,-2312.35,0.0003041,10]
[356785543,1743178087022,-603.0,0.0003041,10]
[356785544,1743178087044,-500.0,0.0003041,10]
[356785545,1743178087066,-500.0,0.0003041,10]
[356785546,1743178087090,-1056.53,0.0003041,10]
[356785547,1743178087119,-500.0,0.0003041,10]
[356785548,1743178087148,-3241.76,0.0003041,10]
[356785549,1743178087172,-500.0,0.0003041,10]
[356785550,1743178087196,-500.0,0.0003041,10]
[356785551,1743178087219,-885.69,0.0003041,10]
[356785552,1743178087241,-500.0,0.0003041,10]
[356785553,1743178087264,-1332.75,0.0003041,10]
[356785554,1743178087285,-538.19,0.0003041,10]
[356785555,1743178087308,-1019.77,0.0003041,10]
[356785556,1743178087331,-9845.67,0.0003041,10]
[356785557,1743178087352,-500.0,0.0003041,10]
[356785558,1743178087374,-500.0,0.0003041,10]
[356785559,1743178087397,-500.0,0.0003041,10]
[356785560,1743178087419,-500.0,0.0003041,7]
[356785561,1743178087442,-500.0,0.0003041,10]
[356785562,1743178087464,-1159.31,0.0003041,10]
[356785563,1743178087487,-585.65,0.0003041,10]
[356785564,1743178087510,-500.0,0.0003041,10]
[356785565,1743178087533,-2016.27,0.0003041,10]
[356785566,1743178087556,-500.0,0.0003041,10]
[356785567,1743178087578,-500.0,0.0003041,10]
[356785568,1743178087600,-500.0,0.0003041,10]
[356785569,1743178087623,-781.09,0.0003041,10]
[356785570,1743178087649,-8311.67,0.0003041,10]
[356785571,1743178087671,-500.0,0.0003041,10]
[356785572,1743178087693,-1918.22,0.0003041,10]
[356785573,1743178087715,-500.0,0.0003041,10]
[356785574,1743178087736,-500.0,0.0003041,10]
[356785575,1743178087758,-3841.71,0.0003041,10]
[356785576,1743178087780,-500.0,0.0003041,10]
[356785577,1743178087804,-500.0,0.0003041,10]
[356785578,1743178087826,-3004.85,0.0003041,10]
[356785579,1743178087847,-500.0,0.0003041,10]
[356785580,1743178087869,-547.38,0.0003041,10]
[356785581,1743178087891,-7240.24,0.0003041,10]
[356785582,1743178087913,-569.15,0.0003041,10]
[356785583,1743178087937,-500.0,0.0003041,10]
[356785584,1743178087959,-828.13,0.0003041,10]
[356785585,1743178087982,-500.0,0.0003041,10]
[356785586,1743178088004,-656.02,0.0003041,10]
[356785587,1743178088026,-500.0,0.0003041,10]
[356785588,1743178088049,-500.0,0.0003041,10]
[356785589,1743178088072,-500.0,0.0003041,10]
[356785590,1743178088097,-1533.13,0.0003041,10]
[356785591,1743178088121,-500.0,0.0003041,10]
[356785592,1743178088144,-500.0,0.0003041,10]
[356785593,1743178088167,-911.85,0.0003041,10]
[356785594,1743178088192,-627.01,0.0003041,10]
[356785595,1743178088217,-6940.59,0.0003041,10]
[356785596,1743178088242,-3910.27,0.0003041,10]
[356785597,1743178088264,-500.0,0.0003041,10]
[356785598,1743178088288,-1817.55,0.0003041,10]
[356785599,1743178088311,-8256.26,0.0003041,10]
[356785600,1743178088332,-500.0,0.0003041,10]
[356785601,1743178088355,-1826.7,0.0003041,10]
[356785602,1743178088378,-508.58937092,0.0003041,10]
[356785603,1743178088400,-7106.12,0.0003041,10]
[356785604,1743178088423,-1637.09,0.0003041,10]
[356785605,1743178088445,-2122.04,0.0003041,10]
[356785606,1743178088467,-10447.85,0.0003041,10]
[356785607,1743178088490,-504.02,0.0003041,10]
[356785608,1743178088512,-549.43,0.0003041,10]
[356785609,1743178088534,-500.0,0.0003041,10]
[356785610,1743178088556,-500.0,0.0003041,10]
[356785611,1743178088578,-3205.75,0.0003041,10]
[356785612,1743178088600,-500.0,0.0003041,10]
[356785613,1743178088622,-500.0,0.0003041,10]
[356785614,1743178088644,-500.0,0.0003041,10]
[356785615,1743178088667,-561.09,0.0003041,10]
[356785616,1743178088690,-500.0,0.0003041,10]
[356785617,1743178088711,-1579.03,0.0003041,10]
[356785618,1743178088734,-653.23,0.0003041,10]
[356785619,1743178088756,-500.0,0.0003041,10]
[356785620,1743178088779,-500.0,0.0003041,10]
[356785621,1743178088803,-418.18415381,0.0003041,10]
[356785622,1743178088825,-500.0,0.0003041,10]
[356785623,1743178088847,-621.2,0.0003041,10]
[356785624,1743178088870,-500.0,0.0003041,10]
[356785625,1743178088893,-500.0,0.0003041,10]
[356785626,1743178088916,-905.59,0.0003041,10]
[356785627,1743178088938,-500.0,0.0003041,10]
[356785628,1743178088961,-1771.73,0.0003041,10]
[356785629,1743178088984,-500.0,0.0003041,10]
[356785630,1743178089007,-3431.69,0.0003041,10]
[356785631,1743178089040,-500.0,0.0003041,10]
[356785632,1743178089063,-500.0,0.0003041,10]
[356785633,1743178089087,-778.07,0.0003041,10]
[356785634,1743178089112,-500.0,0.0003041,10]
[356785635,1743178089135,-828.3,0.0003041,10]
[356785636,1743178089158,-537.42865071,0.0003041,10]
[356785637,1743178089181,-500.0,0.0003041,10]
[356785638,1743178089203,-500.0,0.0003041,10]
[356785639,1743178089228,-500.0,0.0003041,10]
[356785640,1743178089251,-500.0,0.0003041,10]
[356785641,1743178089273,-500.0,0.0003041,10]
[356785642,1743178089296,-599.36734997,0.0003041,10]
[356785643,1743178089319,-5585.7,0.0003041,10]
[356785644,1743178089342,-8802.55,0.0003041,10]
[356785645,1743178089364,-1141.63,0.0003041,10]
[356785646,1743178089386,-225.12039218,0.0003041,10]
[356785647,1743178089408,-990.28,0.0003041,10]
[356785648,1743178089430,-656.16,0.0003041,10]
[356785649,1743178089452,-500.0,0.0003041,10]
[356785650,1743178089474,-500.0,0.0003041,10]
[356785651,1743178089496,-500.0,0.0003041,10]
[356785652,1743178089518,-500.0,0.0003041,10]
[356785653,1743178089542,-500.0,0.0003041,10]
[356785654,1743178089563,-2729.95,0.0003041,10]
[356785655,1743178089584,-500.0,0.0003041,10]
[356785656,1743178089606,-500.0,0.0003041,10]
[356785657,1743178089627,-500.0,0.0003041,10]
[356785658,1743178089649,-500.0,0.0003041,10]
[356785659,1743178089671,-1466.97,0.0003041,10]
[356785660,1743178089694,-500.0,0.0003041,10]
[356785661,1743178089716,-500.0,0.0003041,10]
[356785662,1743178089740,-1626.67,0.0003041,10]
[356785663,1743178089762,-500.0,0.0003041,10]
[356785664,1743178089785,-500.0,0.0003041,10]
[356785665,1743178089808,-500.0,0.0003041,10]
[356785666,1743178089829,-500.0,0.0003041,10]
[356785667,1743178089853,-1790.55,0.0003041,10]
[356785668,1743178089876,-986.22,0.0003041,10]
[356785669,1743178089898,-500.0,0.0003041,10]
[356785670,1743178089921,-9783.88,0.0003041,10]
[356785671,1743178089945,-6525.6,0.0003041,10]
[356785672,1743178089967,-1027.83,0.0003041,10]
[356785673,1743178089990,-500.0,0.0003041,10]
[356785674,1743178090011,-500.0,0.00030473,5]
[356785675,1743178090033,-500.0,0.00030473,5]
[356785676,1743178090057,-500.0,0.00030473,5]
[356785677,1743178090079,-500.0,0.00030473,5]
[356785678,1743178090105,-502.81448921,0.00030473,5]
[356785679,1743178090129,-503.96143548,0.00030473,5]
[356785680,1743178090152,-162.35564662,0.00030473,5]
[356785681,1743178090175,-500.0,0.00030473,5]
[356785682,1743178090200,-183.2076473,0.00030473,5]
[356785683,1743178090223,-164.79751302,0.00030473,5]
[356785684,1743178090250,-150.58609313,0.00030473,5]
[356785685,1743178090275,-501.07529864,0.00030473,5]
[356785686,1743178090299,-500.0,0.00030473,5]
[356785687,1743178090323,-500.0,0.00030473,5]
[356785688,1743178090579,-500.0,0.00030473,5]
[356785689,1743178090603,-502.0019427,0.00030473,5]
[356785690,1743178090625,-500.0,0.00030473,5]
[356785691,1743178090648,-500.0,0.00030473,5]
[356785692,1743178090671,-500.0,0.00030473,5]
[356785693,1743178090694,-500.0,0.00030473,5]
[356785694,1743178090719,-435.30125821,0.0003059,9]
[356785695,1743178090742,-358.8839599,0.0003063,30]
[356785696,1743178090765,-500.0,0.00030684,10]
[356785697,1743178090788,-500.0,0.00030684,10]
[356785698,1743178090814,-374.23637441,0.00030684,10]
[356785699,1743178090837,-500.0,0.00030684,10]
[356785700,1743178090861,-500.0,0.00030684,10]
[356785701,1743178090884,-500.0,0.00030684,10]
[356785702,1743178090907,-532.22712137,0.00030684,10]
[356785703,1743178090929,-500.0,0.00030684,10]
[356785704,1743178090950,-500.0,0.00030684,10]
[356785705,1743178090971,-509.10121416,0.00030684,10]
[356785706,1743178090993,-500.0,0.00030684,10]
[356785707,1743178091017,-500.0,0.00030684,10]
[356785708,1743178091039,-500.0,0.00030684,10]
[356785709,1743178091062,-190.34386664,0.00030684,10]
[356785710,1743178091084,-500.0,0.00030684,10]
[356785711,1743178091112,-500.0,0.00030684,10]
[356785712,1743178091135,-500.0,0.00030684,10]
[356785713,1743178091159,-500.0,0.00030684,10]
[356785714,1743178091184,-500.0,0.00030684,10]
[356785715,1743178091208,-500.0,0.00030684,5]
[356785716,1743178091233,-500.0,0.00030684,10]
[356785717,1743178091256,-500.0,0.00030684,10]
[356785718,1743178091280,-500.0,0.00030684,10]
[356785719,1743178091305,-726.06,0.00030684,10]
[356785720,1743178091327,-503.50485424,0.00030684,10]
[356785721,1743178091350,-544.86588361,0.00030684,10]
[356785722,1743178091373,-500.0,0.00030684,10]
[356785723,1743178091396,-517.62058288,0.00030684,10]
[356785724,1743178091420,-324.80995702,0.00030684,10]
[356785725,1743178091443,-500.0,0.00030684,10]
[356785726,1743178091466,-500.0,0.00030684,10]
[356785727,1743178091490,-500.0,0.00030684,10]
[356785728,1743178091512,-542.27821347,0.00030684,10]
[356785729,1743178091535,-500.0,0.00030684,10]
[356785730,1743178091557,-500.0,0.00030684,10]
[356785731,1743178091579,-500.0,0.00030684,10]
[356785732,1743178091602,-500.0,0.00030684,10]
[356785733,1743178091623,-500.0,0.00030684,10]
[356785734,1743178091645,-500.0,0.00030684,10]
[356785735,1743178091666,-500.0,0.00030684,10]
[356785736,1743178091688,-500.0,0.00030684,10]
[356785737,1743178091710,-500.0,0.00030684,10]
[356785738,1743178091732,-500.0,0.00030684,10]
[356785739,1743178091754,-500.0,0.00030684,10]
[356785740,1743178091776,-500.0,0.00030684,10]
[356785741,1743178091799,-500.0,0.00030684,10]
[356785742,1743178091821,-500.0,0.00030684,10]
[356785743,1743178091843,-500.0,0.00030684,10]
[356785744,1743178091865,-337.58571246,0.00030684,10]
[356785745,1743178091886,-500.0,0.00030684,10]
[356785746,1743178091908,-478.66058576,0.00030684,10]
[356785747,1743178091930,-500.0,0.00030684,10]
[356785748,1743178091952,-500.0,0.00030684,10]
[356785749,1743178091974,-161.22466016,0.00030684,10]
[356785750,1743178091995,-531.34533457,0.00030684,10]
[356785751,1743178092018,-537.27066632,0.00030684,10]
[356785752,1743178092042,-500.0,0.00030684,10]
[356785753,1743178092064,-500.0,0.00030684,10]
[356785754,1743178092086,-500.0,0.00030684,10]
[356785755,1743178092112,-500.0,0.00030684,10]
[356785756,1743178092134,-500.0,0.00030684,10]
[356785757,1743178092158,-500.0,0.00030684,10]
[356785758,1743178092180,-500.0,0.00030684,10]
[356785759,1743178092203,-500.0,0.00030684,10]
[356785760,1743178092228,-533.53,0.00030684,10]
[356785761,1743178092251,-500.0,0.00030684,10]
[356785762,1743178092274,-500.0,0.00030684,10]
[356785763,1743178092298,-500.0,0.00030684,10]
[356785764,1743178092320,-500.0,0.00030684,10]
[356785765,1743178092343,-559.47321762,0.00030684,10]
[356785766,1743178092366,-500.0,0.00030684,10]
[356785767,1743178092388,-500.0,0.00030684,10]
[356785768,1743178092411,-500.0,0.00030684,10]
[356785769,1743178092435,-339.91863662,0.00030684,10]
[356785770,1743178092459,-500.0,0.00030684,10]
[356785771,1743178092482,-500.0,0.00030684,10]
[356785772,1743178092504,-500.0,0.00030684,10]
[356785773,1743178092527,-500.0,0.00030684,10]
[356785774,1743178092554,-500.0,0.00030684,10]
[356785775,1743178092577,-519.87689974,0.00030684,10]
[356785776,1743178092600,-579.87459836,0.00030684,10]
[356785777,1743178092623,-500.0,0.00030684,10]
[356785778,1743178092646,-514.87984121,0.00030684,10]
[356785779,1743178092668,-500.0,0.00030684,10]
[356785780,1743178092691,-500.0,0.00030684,10]
[356785781,1743178092714,-1060.93,0.00030684,10]
[356785782,1743178092737,-1185.76,0.00030684,10]
[356785783,1743178092758,-1565.2,0.00030684,10]
[356785784,1743178092782,-500.0,0.00030684,10]
[356785785,1743178092809,-500.0,0.00030684,10]
[356785786,1743178092832,-500.0,0.00030684,10]
[356785787,1743178092856,-500.0,0.00030684,10]
[356785788,1743178092879,-500.0,0.00030684,10]
[356785789,1743178092902,-500.0,0.00030684,10]
[356785790,1743178092926,-500.0,0.00030684,10]
[356785791,1743178092948,-586.58,0.00030684,10]
[356785792,1743178092971,-241.99549771,0.00030684,10]
[356785793,1743178092994,-500.0,0.00030684,10]
[356785794,1743178093016,-442.03505894,0.00030684,10]
[356785795,1743178093039,-500.0,0.00030684,10]
[356785796,1743178093062,-587.82,0.00030684,10]
[356785797,1743178093085,-500.0,0.00030684,10]
[356785798,1743178093112,-500.0,0.00030684,10]
[356785799,1743178093135,-631.45,0.00030684,10]
[356785800,1743178093159,-500.0,0.00030684,10]
[356785801,1743178093183,-500.0,0.00030684,10]
[356785802,1743178093206,-500.0,0.00030684,10]
[356785803,1743178093230,-500.0,0.00030684,10]
[356785804,1743178093254,-500.0,0.00030684,10]
[356785805,1743178093277,-1295.93,0.00030684,10]
[356785806,1743178093304,-500.0,0.00030684,10]
[356785807,1743178093326,-500.0,0.00030684,10]
[356785808,1743178093348,-500.0,0.00030684,10]
[356785809,1743178093371,-500.0,0.00030684,10]
[356785810,1743178093394,-500.0,0.00030684,10]
[356785811,1743178093417,-500.0,0.00030684,10]
[356785812,1743178093441,-500.0,0.00030684,10]
[356785813,1743178093464,-500.0,0.00030684,10]
[356785814,1743178093487,-500.0,0.00030684,10]
[356785815,1743178093511,-1312.95,0.00030684,10]
[356785816,1743178093534,-528.61780187,0.00030684,10]
[356785817,1743178093561,-1365.98,0.00030684,10]
[356785818,1743178093584,-434.15599054,0.00030684,10]
[356785819,1743178093607,-500.0,0.00030684,10]
[356785820,1743178093632,-500.0,0.00030684,10]
[356785821,1743178093656,-500.0,0.00030684,10]
[356785822,1743178093679,-500.0,0.00030684,10]
[356785823,1743178093702,-500.0,0.00030684,10]
[356785824,1743178093725,-170.6925339,0.00030684,10]
[356785825,1743178093748,-731.23,0.00030684,10]
[356785826,1743178093770,-500.0,0.00030684,10]
[356785827,1743178093796,-500.0,0.00030684,10]
[356785828,1743178093819,-500.0,0.00030684,10]
[356785829,1743178093841,-500.0,0.00030684,10]
[356785830,1743178093864,-500.0,0.00030684,10]
[356785831,1743178093887,-784.35,0.00030684,10]
[356785832,1743178093910,-500.0,0.00030684,10]
[356785833,1743178093935,-500.0,0.00030684,10]
[356785834,1743178093958,-578.96,0.00030684,10]
[356785835,1743178093981,-2050.62,0.00030684,10]
[356785836,1743178094003,-719.87,0.00030684,10]
[356785837,1743178094024,-500.0,0.00030684,10]
[356785838,1743178094047,-500.0,0.00030684,10]
[356785839,1743178094070,-1400.23,0.00030684,10]
[356785840,1743178094093,-692.21,0.00030684,10]
[356785841,1743178094121,-500.0,0.00030684,10]
[356785842,1743178094144,-500.0,0.00030684,10]
[356785843,1743178094166,-500.0,0.00030684,10]
[356785844,1743178094189,-194.24369395,0.00030684,10]
[356785845,1743178094212,-500.0,0.00030684,10]
[356785846,1743178094236,-500.0,0.00030684,10]
[356785847,1743178094259,-500.0,0.00030684,10]
[356785848,1743178094282,-803.23,0.00030684,10]
[356785849,1743178094306,-500.0,0.00030684,10]
[356785850,1743178094329,-849.33,0.00030684,10]
[356785851,1743178094351,-500.0,0.00030684,10]
[356785852,1743178094373,-500.0,0.00030684,10]
[356785853,1743178094397,-500.0,0.00030684,10]
[356785854,1743178094419,-1149.56,0.00030684,10]
[356785855,1743178094441,-500.0,0.00030684,10]
[356785856,1743178094464,-500.0,0.00030684,10]
[356785857,1743178094487,-500.0,0.00030684,10]
[356785858,1743178094508,-500.0,0.00030684,10]
[356785859,1743178094530,-727.67,0.00030684,10]
[356785860,1743178094782,-873.4,0.00030684,2]
[356785861,1743178094809,-500.0,0.00030684,10]
[356785862,1743178094833,-500.0,0.00030684,10]
[356785863,1743178094856,-500.0,0.00030684,10]
[356785864,1743178094879,-2366.24,0.00030684,10]
[356785865,1743178094902,-500.0,0.00030684,10]
[356785866,1743178094925,-500.0,0.00030684,10]
[356785867,1743178094966,-574.58852769,0.00030684,10]
[356785868,1743178094992,-500.0,0.00030684,10]
[356785869,1743178095018,-500.0,0.00030684,10]
[356785870,1743178095044,-3346.51,0.00030684,10]
[356785871,1743178095070,-500.0,0.00030684,10]
[356785872,1743178095096,-500.0,0.00030684,10]
[356785873,1743178095124,-617.29,0.00030684,10]
[356785874,1743178095149,-1606.59,0.00030684,10]
[356785875,1743178095174,-500.0,0.00030684,10]
[356785876,1743178095201,-359.8529533,0.00030684,10]
[356785877,1743178095227,-500.0,0.00030684,7]
[356785878,1743178095251,-1432.52,0.00030684,10]
[356785879,1743178095275,-500.0,0.00030684,10]
[356785880,1743178095299,-500.0,0.00030684,10]
[356785881,1743178095324,-278.54695418,0.00030684,10]
[356785882,1743178095347,-500.0,0.00030684,10]
[356785883,1743178095371,-731.85,0.00030684,10]
[356785884,1743178095395,-1681.06,0.00030684,10]
[356785885,1743178095419,-500.0,0.00030684,10]
[356785886,1743178095444,-500.0,0.00030684,10]
[356785887,1743178095468,-3721.34,0.00030684,10]
[356785888,1743178095492,-500.0,0.00030684,10]
[356785889,1743178095516,-1938.0,0.00030684,10]
[356785890,1743178095541,-500.0,0.00030684,10]
[356785891,1743178095565,-500.0,0.00030684,10]
[356785892,1743178095588,-1392.51,0.00030684,10]
[356785893,1743178095610,-500.0,0.00030684,10]
[356785894,1743178095634,-662.68,0.00030684,10]
[356785895,1743178095657,-500.0,0.00030684,10]
[356785896,1743178095685,-241.73156292,0.00030684,10]
[356785897,1743178095709,-500.0,0.00030684,10]
[356785898,1743178095732,-1582.0,0.00030684,10]
[356785899,1743178095755,-500.0,0.00030684,10]
[356785900,1743178095778,-500.0,0.00030684,10]
[356785901,1743178095802,-1142.72,0.00030684,10]
[356785902,1743178095825,-3148.4156376,0.00030684,2]
[356785934,1743178232682,-295.25780128,0.00026474,2]
[356785935,1743178232693,-500.0,0.00026574,2]
[356785936,1743178232703,-365.97738076,0.00026574,2]
[356785938,1743178233302,-134.02261924,0.00026574,2]
[356785939,1743178233312,-500.0,0.00026574,2]
[356785940,1743178233323,-500.0,0.00026574,2]
[356785941,1743178233333,-500.0,0.00026574,2]
[356785942,1743178233344,-500.0,0.00026574,2]
[356785943,1743178233355,-500.0,0.00026574,2]
[356785944,1743178233366,-500.0,0.00026574,2]
[356785945,1743178233376,-280.80534317,0.00026574,2]
[356785946,1743178233386,-500.0,0.00026574,2]
[356785947,1743178233396,-500.0,0.00026574,2]
[356785948,1743178233406,-500.0,0.00026574,2]
[356785949,1743178233416,-500.0,0.00026574,2]
[356785950,1743178233428,-500.0,0.00026574,2]
[356785951,1743178233438,-500.0,0.00026574,2]
[356785952,1743178233448,-500.0,0.00026574,2]
[356785953,1743178233458,-500.0,0.00026574,2]
[356785954,1743178233469,-500.0,0.00026574,2]
[356785955,1743178233479,-500.0,0.00026574,2]
[356785956,1743178233489,-521.35353366,0.00026574,2]
[356785957,1743178233499,-500.0,0.00026574,2]
[356785958,1743178233509,-500.0,0.00026574,2]
[356785959,1743178233520,-119.04468693,0.00026574,2]
[356785960,1743178233532,-380.95531307,0.00026574,2]
[356785961,1743178233542,-500.0,0.00026574,2]
[356785962,1743178233553,-500.0,0.00026574,2]
[356785963,1743178233563,-500.0,0.00026574,2]
[356785964,1743178233572,-203.1405873,0.000269,7]
[356785965,1743178233582,-203.14058716,0.0002721,7]
[356785966,1743178233592,-368.627052,0.000275,7]
[356785967,1743178233601,-368.627052,0.000275,7]
[356785968,1743178233612,-203.14058716,0.00027521,7]
[356785969,1743178233622,-24900.0,0.00027666,2]
[356785970,1743178233632,-203.14058716,0.00027831,7]
[356785971,1743178233641,-368.627052,0.0002799,7]
[356785972,1743178233651,-368.627052,0.0002799,7]
[356785973,1743178233661,-203.14058716,0.00028141,7]
[356785974,1743178233670,-203.14058716,0.00028452,8]
[356785975,1743178233680,-203.14058716,0.00028762,8]
[356785976,1743178233689,-203.14058716,0.00029072,8]
[356785977,1743178233700,-203.14058716,0.00029383,8]
[356785978,1743178233709,-203.14058716,0.00029693,8]
[356785979,1743178233719,-310.3388752,0.00029763,4]
[356785980,1743178233729,-368.627052,0.0003,7]
[356785981,1743178233738,-368.627052,0.0003,7]
[356785982,1743178233748,-368.627052,0.0003,7]
[356785983,1743178233758,-368.627052,0.0003,7]
[356785984,1743178233768,-203.14058716,0.00030003,9]
[356785985,1743178233777,-273.30998963,0.00030036,2]
[356785986,1743178233787,-1486.29403853,0.00030036,2]
[356785987,1743178233798,-327.25284655,0.00030036,2]
[356785988,1743178233808,-602.47183881,0.00030067,2]
[356785989,1743178233818,-273.30998962,0.00030105,2]
[356785990,1743178233829,-6886.11332,0.00030135,2]
[356785991,1743178233839,-242.19026922,0.00030136,10]
[356785992,1743178233851,-368.627052,0.00030136,7]
[356785993,1743178233861,-368.627052,0.00030136,7]
[356785994,1743178233871,-368.627052,0.00030136,7]
[356785995,1743178233882,-368.627052,0.00030136,7]
[356785996,1743178233892,-368.627052,0.00030136,7]
[356785997,1743178233902,-368.627052,0.00030136,7]
[356785998,1743178233912,-368.627052,0.00030136,7]
[356785999,1743178233922,-368.627052,0.00030136,7]
[356786000,1743178233932,-368.627052,0.00030136,7]
[356786001,1743178233942,-368.627052,0.00030136,7]
[356786002,1743178233952,-368.627052,0.00030136,7]
[356786003,1743178233963,-500.0,0.00030136,10]
[356786004,1743178233973,-368.62705,0.00030136,7]
[356786005,1743178233983,-500.0,0.00030136,10]
[356786006,1743178233993,-500.0,0.00030136,10]
[356786007,1743178234003,-500.0,0.00030136,10]
[356786008,1743178234014,-500.0,0.00030136,10]
[356786009,1743178234024,-500.0,0.00030136,10]
[356786010,1743178234034,-500.0,0.00030136,10]
[356786011,1743178234045,-1386.37,0.00030136,10]
[356786012,1743178234054,-6636.89,0.00030136,10]
[356786013,1743178234065,-2186.2,0.00030136,10]
[356786014,1743178234075,-500.0,0.00030136,10]
[356786015,1743178234084,-7798.77,0.00030136,10]
[356786016,1743178234094,-8272.19029785,0.00030136,10]
[356786017,1743178234107,-2195.76009797,0.00030136,10]
[356786018,1743178234119,-1684.4,0.00030136,10]
[356786019,1743178234131,-1796.78960418,0.00030136,10]
[356786020,1743178234142,-667.21039582,0.00030136,10]
[356786137,1743178250574,-5694.99960418,0.00030136,10]
[356786138,1743178250585,-166.2329334,0.00030136,10]
[356786139,1743178250595,-500.0,0.00030136,10]
[356786140,1743178250605,-500.0,0.00030136,10]
[356786141,1743178250616,-500.0,0.00030136,10]
[356786142,1743178250626,-500.0,0.00030136,10]
[356786143,1743178250638,-500.0,0.00030136,10]
[356786144,1743178250648,-500.0,0.00030136,10]
[356786145,1743178250659,-500.0,0.00030136,10]
[356786146,1743178250670,-500.0,0.00030136,10]
[356786147,1743178250680,-500.0,0.00030136,10]
[356786148,1743178250692,-500.0,0.00030136,10]
[356786149,1743178250702,-500.0,0.00030136,10]
[356786150,1743178250713,-500.0,0.00030136,10]
[356786151,1743178250724,-500.0,0.00030136,10]
[356786152,1743178250734,-500.0,0.00030136,10]
[356786153,1743178250744,-500.0,0.00030136,10]
[356786154,1743178250755,-500.0,0.00030136,10]
[356786155,1743178250765,-500.0,0.00030136,10]
[356786156,1743178250775,-500.0,0.00030136,10]
[356786157,1743178250785,-500.0,0.00030136,10]
[356786158,1743178250796,-499.07831432,0.00030136,10]
[356786159,1743178250806,-1475.25,0.00030136,10]
[356786160,1743178250817,-500.0,0.00030136,10]
[356786161,1743178250828,-3010.29,0.00030136,10]